[Event "Titled Tuesday Blitz June 21 Late 2022"]
[White "Gardezi, Arsal"]
[Black "Remolar Gallen, Jose"]
[WhiteFideId "30949521"]
[BlackFideId "2215187"]
[WhiteElo "1781"]
[BlackElo "2205"]
[Result "1-0"]
[Round "06"]
[TimeControl "180+1"]
[Date "2022.06.22"]
[WhiteClock "0:00:19"]
[BlackClock "0:00:48"]

1. Nf3 {[%clk 0:03:00]}  Nf6 {[%clk 0:02:58]} 2. g3 {[%clk 0:02:59]}  g6 {[%clk 0:02:58]} 3. Bg2 {[%clk 0:02:59]}  Bg7 {[%clk 0:02:58]} 4. O-O {[%clk 0:03:00]}  O-O {[%clk 0:02:58]} 5. d4 {[%clk 0:03:00]}  d6 {[%clk 0:02:56]} 6. c4 {[%clk 0:03:00]}  c5 {[%clk 0:02:51]} 7. Nc3 {[%clk 0:02:57]}  e6 {[%clk 0:02:47]} 8. e4 {[%clk 0:02:56]}  Nc6 {[%clk 0:02:45]} 9. dxc5 {[%clk 0:02:44]}  dxc5 {[%clk 0:02:45]} 10. e5 {[%clk 0:02:44]}  Nd7 {[%clk 0:02:38]} 11. Bg5 {[%clk 0:02:26]}  Qb6 {[%clk 0:02:26]} 12. Na4 {[%clk 0:02:04]}  Qc7 {[%clk 0:02:18]} 13. Bf4 {[%clk 0:02:00]}  b6 {[%clk 0:02:06]} 14. Re1 {[%clk 0:01:34]}  Ba6 {[%clk 0:02:01]} 15. Rc1 {[%clk 0:01:25]}  Rad8 {[%clk 0:02:01]} 16. Qe2 {[%clk 0:01:22]}  h6 {[%clk 0:01:54]} 17. h4 {[%clk 0:01:20]}  Nd4 {[%clk 0:01:42]} 18. Nxd4 {[%clk 0:01:16]}  cxd4 {[%clk 0:01:43]} 19. Qd2 {[%clk 0:01:07]}  Kh7 {[%clk 0:01:26]} 20. Qe2 {[%clk 0:00:34]}  d3 {[%clk 0:01:25]} 21. Qxd3 {[%clk 0:00:32]}  Nc5 {[%clk 0:01:25]} 22. Qa3 {[%clk 0:00:31]}  Nd3 {[%clk 0:01:19]} 23. c5 {[%clk 0:00:22]}  Nxc1 {[%clk 0:01:11]} 24. Rxc1 {[%clk 0:00:20]}  b5 {[%clk 0:01:05]} 25. Nc3 {[%clk 0:00:20]}  Qc8 {[%clk 0:00:55]} 26. Ne4 {[%clk 0:00:20]}  Rd4 {[%clk 0:00:52]} 27. Nd6 {[%clk 0:00:20]}  Rb4 {[%clk 0:00:48]} 28. Qxb4 {[%clk 0:00:19]} 1-0


[Site "https://www.chess.com"]

[Event "Titled Tuesday Blitz June 21 Late 2022"]
[White "Gimenez Aguirre, Alejo Ismael"]
[Black "Needleman, Alejandro"]
[WhiteFideId "32041667"]
[BlackFideId "100730"]
[WhiteElo "2031"]
[BlackElo "2317"]
[Result "1/2-1/2"]
[Round "06"]
[TimeControl "180+1"]
[Date "2022.06.22"]
[WhiteClock "0:00:10"]
[BlackClock "0:00:19"]

1. e4 {[%clk 0:02:50]}  c5 {[%clk 0:02:58]} 2. Nf3 {[%clk 0:02:50]}  e6 {[%clk 0:02:56]} 3. d4 {[%clk 0:02:50]}  cxd4 {[%clk 0:02:57]} 4. Nxd4 {[%clk 0:02:50]}  Nc6 {[%clk 0:02:57]} 5. Nxc6 {[%clk 0:02:50]}  bxc6 {[%clk 0:02:54]} 6. Bd3 {[%clk 0:02:51]}  Nf6 {[%clk 0:02:49]} 7. O-O {[%clk 0:02:52]}  e5 {[%clk 0:02:48]} 8. Nc3 {[%clk 0:02:52]}  Bc5 {[%clk 0:02:47]} 9. Kh1 {[%clk 0:02:51]}  d6 {[%clk 0:02:47]} 10. f4 {[%clk 0:02:50]}  Ng4 {[%clk 0:02:48]} 11. Qe1 {[%clk 0:02:27]}  exf4 {[%clk 0:02:46]} 12. Bxf4 {[%clk 0:02:25]}  O-O {[%clk 0:02:46]} 13. h3 {[%clk 0:02:23]}  Ne5 {[%clk 0:02:45]} 14. Qg3 {[%clk 0:02:22]}  Qe7 {[%clk 0:02:43]} 15. Rad1 {[%clk 0:02:19]}  Kh8 {[%clk 0:02:33]} 16. Na4 {[%clk 0:02:16]}  Bb6 {[%clk 0:02:27]} 17. Nxb6 {[%clk 0:02:12]}  axb6 {[%clk 0:02:27]} 18. a3 {[%clk 0:02:11]}  b5 {[%clk 0:02:14]} 19. c3 {[%clk 0:02:08]}  f6 {[%clk 0:02:08]} 20. Bb1 {[%clk 0:02:04]}  Be6 {[%clk 0:02:08]} 21. Rf2 {[%clk 0:01:59]}  Bb3 {[%clk 0:02:07]} 22. Bc2 {[%clk 0:01:56]}  Bxc2 {[%clk 0:02:00]} 23. Rxc2 {[%clk 0:01:57]}  Rfd8 {[%clk 0:01:58]} 24. Rcd2 {[%clk 0:01:27]}  h6 {[%clk 0:01:56]} 25. Bxe5 {[%clk 0:01:26]}  dxe5 {[%clk 0:01:50]} 26. Qe3 {[%clk 0:01:26]}  Rxd2 {[%clk 0:01:47]} 27. Qxd2 {[%clk 0:01:27]}  Qe6 {[%clk 0:01:47]} 28. Qd7 {[%clk 0:01:22]}  Qc4 {[%clk 0:01:44]} 29. Qb7 {[%clk 0:01:13]}  Rf8 {[%clk 0:01:29]} 30. Qe7 {[%clk 0:01:10]}  Rg8 {[%clk 0:01:26]} 31. Qb4 {[%clk 0:00:57]}  Qe2 {[%clk 0:01:21]} 32. Rg1 {[%clk 0:00:48]}  Rd8 {[%clk 0:01:15]} 33. a4 {[%clk 0:00:47]}  bxa4 {[%clk 0:01:13]} 34. Qxa4 {[%clk 0:00:48]}  Rd2 {[%clk 0:01:11]} 35. Qxc6 {[%clk 0:00:46]}  Rxb2 {[%clk 0:01:11]} 36. Qc8+ {[%clk 0:00:45]}  Kh7 {[%clk 0:01:10]} 37. Qf5+ {[%clk 0:00:45]}  Kh8 {[%clk 0:01:11]} 38. Qc8+ {[%clk 0:00:43]}  Kh7 {[%clk 0:01:11]} 39. Qf5+ {[%clk 0:00:43]}  Kh8 {[%clk 0:01:10]} 40. Qg6 {[%clk 0:00:41]}  Rd2 {[%clk 0:01:04]} 41. Kh2 {[%clk 0:00:35]}  Qe3 {[%clk 0:00:56]} 42. Rb1 {[%clk 0:00:22]}  Qf4+ {[%clk 0:00:43]} 43. Kh1 {[%clk 0:00:21]}  Rd8 {[%clk 0:00:43]} 44. c4 {[%clk 0:00:19]}  Qd2 {[%clk 0:00:35]} 45. Qf7 {[%clk 0:00:16]}  Qc2 {[%clk 0:00:34]} 46. Re1 {[%clk 0:00:16]}  Rd1 {[%clk 0:00:32]} 47. Rxd1 {[%clk 0:00:15]}  Qxd1+ {[%clk 0:00:33]} 48. Kh2 {[%clk 0:00:15]}  Qc1 {[%clk 0:00:30]} 49. Qd5 {[%clk 0:00:15]}  Qf4+ {[%clk 0:00:30]} 50. Kg1 {[%clk 0:00:16]}  Qc1+ {[%clk 0:00:21]} 51. Kf2 {[%clk 0:00:16]}  Qc2+ {[%clk 0:00:21]} 52. Kf1 {[%clk 0:00:17]}  Qc1+ {[%clk 0:00:19]} 53. Kf2 {[%clk 0:00:17]}  Qc2+ {[%clk 0:00:20]} 54. Kg3 {[%clk 0:00:17]}  Qc1 {[%clk 0:00:19]} 55. Kf2 {[%clk 0:00:10]} 1/2-1/2


[Site "https://www.chess.com"]

[Event "Titled Tuesday Blitz June 21 Late 2022"]
[White "Isajevsky, Anton"]
[Black "Wachinger, Guenther"]
[WhiteFideId "4142500"]
[BlackFideId "4604261"]
[WhiteElo "2578"]
[BlackElo "2459"]
[Result "1-0"]
[Round "06"]
[TimeControl "180+1"]
[Date "2022.06.22"]
[WhiteClock "0:00:10"]
[BlackClock "0:00:03"]

1. c4 {[%clk 0:03:00]}  e6 {[%clk 0:02:59]} 2. Nf3 {[%clk 0:03:00]}  d5 {[%clk 0:02:59]} 3. e3 {[%clk 0:03:01]}  Nf6 {[%clk 0:02:57]} 4. Nc3 {[%clk 0:03:00]}  c5 {[%clk 0:02:54]} 5. cxd5 {[%clk 0:02:59]}  exd5 {[%clk 0:02:54]} 6. d4 {[%clk 0:02:59]}  Nc6 {[%clk 0:02:52]} 7. Bb5 {[%clk 0:02:58]}  a6 {[%clk 0:02:50]} 8. Bxc6+ {[%clk 0:02:57]}  bxc6 {[%clk 0:02:51]} 9. O-O {[%clk 0:02:56]}  cxd4 {[%clk 0:02:20]} 10. exd4 {[%clk 0:02:35]}  Be7 {[%clk 0:02:16]} 11. Ne5 {[%clk 0:02:22]}  Bd7 {[%clk 0:02:10]} 12. Bg5 {[%clk 0:02:09]}  O-O {[%clk 0:02:05]} 13. Rc1 {[%clk 0:02:09]}  Rb8 {[%clk 0:02:02]} 14. Na4 {[%clk 0:01:50]}  h6 {[%clk 0:01:02]} 15. Bh4 {[%clk 0:01:32]}  Ne4 {[%clk 0:00:54]} 16. Nxd7 {[%clk 0:01:31]}  Qxd7 {[%clk 0:00:47]} 17. Bxe7 {[%clk 0:01:25]}  Qxe7 {[%clk 0:00:47]} 18. Rxc6 {[%clk 0:01:18]}  Rfe8 {[%clk 0:00:47]} 19. b3 {[%clk 0:01:06]}  Qb4 {[%clk 0:00:45]} 20. Qd3 {[%clk 0:00:45]}  a5 {[%clk 0:00:29]} 21. f3 {[%clk 0:00:36]}  Nf6 {[%clk 0:00:29]} 22. Rc2 {[%clk 0:00:23]}  Re1 {[%clk 0:00:27]} 23. Rxe1 {[%clk 0:00:18]}  Qxe1+ {[%clk 0:00:28]} 24. Qf1 {[%clk 0:00:18]}  Qb4 {[%clk 0:00:25]} 25. Qf2 {[%clk 0:00:18]}  Re8 {[%clk 0:00:25]} 26. Rc1 {[%clk 0:00:17]}  Nh5 {[%clk 0:00:18]} 27. g3 {[%clk 0:00:17]}  Nf6 {[%clk 0:00:17]} 28. Kg2 {[%clk 0:00:16]}  g5 {[%clk 0:00:15]} 29. Nc5 {[%clk 0:00:13]}  g4 {[%clk 0:00:13]} 30. Nd3 {[%clk 0:00:13]}  Qd6 {[%clk 0:00:10]} 31. Ne5 {[%clk 0:00:13]}  gxf3+ {[%clk 0:00:10]} 32. Qxf3 {[%clk 0:00:14]}  Re7 {[%clk 0:00:08]} 33. Rc8+ {[%clk 0:00:12]}  Kg7 {[%clk 0:00:08]} 34. Rc6 {[%clk 0:00:10]}  Qb4 {[%clk 0:00:01]} 35. Qxf6+ {[%clk 0:00:10]}  Kg8 {[%clk 0:00:01]} 36. Rc8+ {[%clk 0:00:08]}  Re8 {[%clk 0:00:02]} 37. Rxe8+ {[%clk 0:00:09]}  Qf8 {[%clk 0:00:02]} 38. Rxf8+ {[%clk 0:00:09]}  Kxf8 {[%clk 0:00:03]} 39. Qxf7# {[%clk 0:00:10]} 1-0


[Site "https://www.chess.com"]

[Event "Titled Tuesday Blitz June 21 Late 2022"]
[White "Janaszak, Dawid"]
[Black "Diaz Rosas, Julio Cesar"]
[WhiteFideId "1119206"]
[BlackFideId "5105099"]
[WhiteElo "2573"]
[BlackElo "2654"]
[Result "0-1"]
[Round "06"]
[TimeControl "180+1"]
[Date "2022.06.22"]
[WhiteClock "0:00:03"]
[BlackClock "0:00:11"]

1. e4 {[%clk 0:03:00]}  e5 {[%clk 0:02:58]} 2. Bc4 {[%clk 0:02:59]}  Nc6 {[%clk 0:02:57]} 3. Nc3 {[%clk 0:02:58]}  Nf6 {[%clk 0:02:54]} 4. d3 {[%clk 0:02:56]}  Bc5 {[%clk 0:02:49]} 5. f4 {[%clk 0:02:51]}  O-O {[%clk 0:02:48]} 6. f5 {[%clk 0:02:49]}  d5 {[%clk 0:02:42]} 7. Nxd5 {[%clk 0:02:39]}  Nxe4 {[%clk 0:02:38]} 8. f6 {[%clk 0:01:57]}  Nxf6 {[%clk 0:01:13]} 9. Bg5 {[%clk 0:01:56]}  b5 {[%clk 0:01:05]} 10. Bb3 {[%clk 0:01:22]}  Nd4 {[%clk 0:00:56]} 11. Nxf6+ {[%clk 0:01:12]}  gxf6 {[%clk 0:00:56]} 12. Bh6 {[%clk 0:01:11]}  Re8 {[%clk 0:00:49]} 13. Qh5 {[%clk 0:01:06]}  Nxb3 {[%clk 0:00:45]} 14. axb3 {[%clk 0:01:02]}  Qd4 {[%clk 0:00:42]} 15. O-O-O {[%clk 0:00:35]}  Bg4 {[%clk 0:00:30]} 16. Qh4 {[%clk 0:00:35]}  Bf8 {[%clk 0:00:18]} 17. c3 {[%clk 0:00:15]}  Bxh6+ {[%clk 0:00:17]} 18. Qxh6 {[%clk 0:00:16]}  Qf4+ {[%clk 0:00:17]} 19. Qxf4 {[%clk 0:00:16]}  exf4 {[%clk 0:00:18]} 20. Rf1 {[%clk 0:00:16]}  Bh5 {[%clk 0:00:16]} 21. Nh3 {[%clk 0:00:15]}  Be2 {[%clk 0:00:15]} 22. Rxf4 {[%clk 0:00:14]}  Bxd3 {[%clk 0:00:15]} 23. Rxf6 {[%clk 0:00:14]}  Re2 {[%clk 0:00:14]} 24. Nf4 {[%clk 0:00:14]}  Rc2+ {[%clk 0:00:14]} 25. Kd1 {[%clk 0:00:14]}  Be4 {[%clk 0:00:14]} 26. Ne2 {[%clk 0:00:08]}  Rd8+ {[%clk 0:00:14]} 27. Ke1 {[%clk 0:00:08]}  Rxb2 {[%clk 0:00:15]} 28. Kf2 {[%clk 0:00:05]}  Rdd2 {[%clk 0:00:14]} 29. Re1 {[%clk 0:00:05]}  Bd3 {[%clk 0:00:14]} 30. Ke3 {[%clk 0:00:05]}  Bxe2 {[%clk 0:00:14]} 31. Rc6 {[%clk 0:00:04]}  Bh5 {[%clk 0:00:11]} 32. Rxc7 {[%clk 0:00:04]}  Ra2 {[%clk 0:00:11]} 33. c4 {[%clk 0:00:03]}  bxc4 {[%clk 0:00:11]} 34. bxc4 {[%clk 0:00:03]}  Rxg2 {[%clk 0:00:11]} 35. Rd1 {[%clk 0:00:03]}  Bxd1 {[%clk 0:00:11]} 0-1


[Site "https://www.chess.com"]

[Event "Titled Tuesday Blitz June 21 Late 2022"]
[White "Jovic, Stanoje"]
[Black "Wang, Isaac"]
[WhiteFideId "905020"]
[BlackFideId "30977185"]
[WhiteElo "2286"]
[BlackElo "2295"]
[Result "1-0"]
[Round "06"]
[TimeControl "180+1"]
[Date "2022.06.22"]
[WhiteClock "0:00:30"]
[BlackClock "0:00:04"]

1. c4 {[%clk 0:02:59]}  c6 {[%clk 0:02:58]} 2. e4 {[%clk 0:02:57]}  d5 {[%clk 0:02:58]} 3. exd5 {[%clk 0:02:57]}  cxd5 {[%clk 0:02:59]} 4. cxd5 {[%clk 0:02:58]}  Nf6 {[%clk 0:02:59]} 5. Qa4+ {[%clk 0:02:58]}  Nbd7 {[%clk 0:02:58]} 6. Nc3 {[%clk 0:02:57]}  g6 {[%clk 0:02:58]} 7. Bc4 {[%clk 0:02:58]}  Bg7 {[%clk 0:02:58]} 8. d3 {[%clk 0:02:58]}  O-O {[%clk 0:02:58]} 9. Nf3 {[%clk 0:02:58]}  a6 {[%clk 0:02:57]} 10. Qa3 {[%clk 0:02:58]}  b6 {[%clk 0:02:41]} 11. O-O {[%clk 0:02:57]}  Bb7 {[%clk 0:02:38]} 12. Re1 {[%clk 0:02:57]}  b5 {[%clk 0:02:36]} 13. Bb3 {[%clk 0:02:56]}  Re8 {[%clk 0:02:32]} 14. Bg5 {[%clk 0:02:55]}  Qb6 {[%clk 0:02:22]} 15. Qb4 {[%clk 0:02:53]}  Nc5 {[%clk 0:02:14]} 16. Be3 {[%clk 0:02:46]}  Nfd7 {[%clk 0:02:02]} 17. a4 {[%clk 0:02:30]}  Nxd3 {[%clk 0:01:53]} 18. Bxb6 {[%clk 0:02:26]}  Nxb4 {[%clk 0:01:52]} 19. Bd4 {[%clk 0:02:06]}  Nd3 {[%clk 0:01:47]} 20. Re2 {[%clk 0:02:03]}  b4 {[%clk 0:01:42]} 21. Ne4 {[%clk 0:01:54]}  Bxd4 {[%clk 0:01:36]} 22. Nxd4 {[%clk 0:01:54]}  N7c5 {[%clk 0:01:35]} 23. Nxc5 {[%clk 0:01:43]}  Nxc5 {[%clk 0:01:34]} 24. Bc4 {[%clk 0:01:41]}  Rad8 {[%clk 0:01:25]} 25. Nc6 {[%clk 0:01:38]}  Bxc6 {[%clk 0:01:24]} 26. dxc6 {[%clk 0:01:38]}  Rc8 {[%clk 0:01:21]} 27. Rc1 {[%clk 0:01:37]}  Rxc6 {[%clk 0:01:12]} 28. Rec2 {[%clk 0:01:20]}  Rec8 {[%clk 0:01:03]} 29. Bd5 {[%clk 0:01:14]}  R6c7 {[%clk 0:00:59]} 30. b3 {[%clk 0:01:12]}  e6 {[%clk 0:00:58]} 31. Bf3 {[%clk 0:01:11]}  Kf8 {[%clk 0:00:54]} 32. a5 {[%clk 0:01:09]}  Ke7 {[%clk 0:00:51]} 33. Rc4 {[%clk 0:01:09]}  Kd6 {[%clk 0:00:33]} 34. Rxb4 {[%clk 0:01:03]}  e5 {[%clk 0:00:15]} 35. Rb6+ {[%clk 0:00:59]}  Ke7 {[%clk 0:00:15]} 36. g3 {[%clk 0:00:56]}  f5 {[%clk 0:00:14]} 37. Be2 {[%clk 0:00:52]}  Nd7 {[%clk 0:00:10]} 38. Rxc7 {[%clk 0:00:49]}  Rxc7 {[%clk 0:00:11]} 39. Rxa6 {[%clk 0:00:48]}  Rc1+ {[%clk 0:00:11]} 40. Kg2 {[%clk 0:00:48]}  Rc2 {[%clk 0:00:11]} 41. Bc4 {[%clk 0:00:48]}  Nc5 {[%clk 0:00:11]} 42. Ra7+ {[%clk 0:00:42]}  Kd6 {[%clk 0:00:11]} 43. a6 {[%clk 0:00:36]}  Ne4 {[%clk 0:00:11]} 44. Rxh7 {[%clk 0:00:34]}  Rxf2+ {[%clk 0:00:11]} 45. Kg1 {[%clk 0:00:34]}  Ra2 {[%clk 0:00:10]} 46. a7 {[%clk 0:00:35]}  Kc5 {[%clk 0:00:09]} 47. Bf7 {[%clk 0:00:30]}  g5 {[%clk 0:00:04]} 48. b4+ {[%clk 0:00:30]} 1-0


[Site "https://www.chess.com"]

[Event "Titled Tuesday Blitz June 21 Late 2022"]
[White "Kanyamarala, Tarun"]
[Black "Flynn, Jacob"]
[WhiteFideId "45004714"]
[BlackFideId "2509393"]
[WhiteElo "2219"]
[BlackElo "1896"]
[Result "1-0"]
[Round "06"]
[TimeControl "180+1"]
[Date "2022.06.22"]
[WhiteClock "0:00:03"]
[BlackClock "0:00:02"]

1. e4 {[%clk 0:02:46]}  e5 {[%clk 0:02:58]} 2. Nf3 {[%clk 0:02:45]}  Nc6 {[%clk 0:02:59]} 3. Bb5 {[%clk 0:02:41]}  a6 {[%clk 0:02:59]} 4. Ba4 {[%clk 0:02:39]}  Nf6 {[%clk 0:02:59]} 5. d3 {[%clk 0:02:38]}  b5 {[%clk 0:02:50]} 6. Bb3 {[%clk 0:02:37]}  Be7 {[%clk 0:02:51]} 7. O-O {[%clk 0:02:35]}  O-O {[%clk 0:02:44]} 8. a3 {[%clk 0:02:28]}  d6 {[%clk 0:02:44]} 9. h3 {[%clk 0:02:28]}  Na5 {[%clk 0:02:11]} 10. Ba2 {[%clk 0:02:27]}  c5 {[%clk 0:02:12]} 11. Nc3 {[%clk 0:02:27]}  Be6 {[%clk 0:02:11]} 12. Nd5 {[%clk 0:02:18]}  Nc6 {[%clk 0:02:00]} 13. Re1 {[%clk 0:02:02]}  h6 {[%clk 0:02:00]} 14. c3 {[%clk 0:01:56]}  Re8 {[%clk 0:02:00]} 15. Be3 {[%clk 0:01:07]}  Bf8 {[%clk 0:01:59]} 16. b4 {[%clk 0:01:07]}  a5 {[%clk 0:01:48]} 17. a4 {[%clk 0:00:48]}  axb4 {[%clk 0:01:37]} 18. axb5 {[%clk 0:00:48]}  Bxd5 {[%clk 0:01:37]} 19. exd5 {[%clk 0:00:45]}  Ne7 {[%clk 0:01:35]} 20. c4 {[%clk 0:00:16]}  Ra3 {[%clk 0:01:20]} 21. Bb3 {[%clk 0:00:16]}  Qa5 {[%clk 0:01:14]} 22. Rxa3 {[%clk 0:00:14]}  bxa3 {[%clk 0:01:07]} 23. Re2 {[%clk 0:00:14]}  Ra8 {[%clk 0:01:06]} 24. Ra2 {[%clk 0:00:14]}  Nf5 {[%clk 0:00:47]} 25. Bd2 {[%clk 0:00:13]}  Qa7 {[%clk 0:00:48]} 26. Bc3 {[%clk 0:00:13]}  Nd7 {[%clk 0:00:43]} 27. Nd2 {[%clk 0:00:13]}  Nd4 {[%clk 0:00:41]} 28. Nb1 {[%clk 0:00:12]}  Qb6 {[%clk 0:00:15]} 29. Rxa3 {[%clk 0:00:12]}  Rxa3 {[%clk 0:00:14]} 30. Nxa3 {[%clk 0:00:12]}  f5 {[%clk 0:00:14]} 31. Nb1 {[%clk 0:00:11]}  g6 {[%clk 0:00:13]} 32. Nd2 {[%clk 0:00:10]}  Bg7 {[%clk 0:00:13]} 33. Kf1 {[%clk 0:00:07]}  Kh7 {[%clk 0:00:09]} 34. Ba2 {[%clk 0:00:06]}  h5 {[%clk 0:00:09]} 35. g4 {[%clk 0:00:03]}  hxg4 {[%clk 0:00:07]} 36. hxg4 {[%clk 0:00:03]}  Bh6 {[%clk 0:00:07]} 37. gxf5 {[%clk 0:00:03]}  gxf5 {[%clk 0:00:08]} 38. Qh5 {[%clk 0:00:03]}  Qd8 {[%clk 0:00:07]} 39. Qf7+ {[%clk 0:00:03]}  Bg7 {[%clk 0:00:05]} 40. Nf3 {[%clk 0:00:03]}  Nxf3 {[%clk 0:00:02]} 41. Qh5+ {[%clk 0:00:03]}  Kg8 {[%clk 0:00:02]} 42. Qxf3 {[%clk 0:00:03]} 1-0


[Site "https://www.chess.com"]

[Event "Titled Tuesday Blitz June 21 Late 2022"]
[White "Keymer, Vincent"]
[Black "Pinheiro, Iung Alicio de O."]
[WhiteFideId "12940690"]
[BlackFideId "2104350"]
[WhiteElo "2548"]
[BlackElo "2283"]
[Result "1-0"]
[Round "06"]
[TimeControl "180+1"]
[Date "2022.06.21"]
[WhiteClock "0:00:03"]
[BlackClock "0:00:08"]

1. Nf3 {[%clk 0:03:00]}  c5 {[%clk 0:02:58]} 2. c4 {[%clk 0:03:00]}  g6 {[%clk 0:02:56]} 3. g3 {[%clk 0:02:57]}  Bg7 {[%clk 0:02:55]} 4. Bg2 {[%clk 0:02:57]}  Nc6 {[%clk 0:02:54]} 5. Nc3 {[%clk 0:02:57]}  d6 {[%clk 0:02:52]} 6. b3 {[%clk 0:02:56]}  Bf5 {[%clk 0:02:43]} 7. Bb2 {[%clk 0:02:55]}  e5 {[%clk 0:02:42]} 8. O-O {[%clk 0:02:51]}  Qd7 {[%clk 0:02:41]} 9. Re1 {[%clk 0:02:23]}  Nge7 {[%clk 0:02:38]} 10. d3 {[%clk 0:02:13]}  h5 {[%clk 0:02:21]} 11. Nd5 {[%clk 0:01:58]}  Nxd5 {[%clk 0:02:10]} 12. cxd5 {[%clk 0:01:56]}  Ne7 {[%clk 0:02:11]} 13. e4 {[%clk 0:01:42]}  Bg4 {[%clk 0:02:02]} 14. b4 {[%clk 0:01:09]}  b6 {[%clk 0:01:55]} 15. bxc5 {[%clk 0:00:52]}  bxc5 {[%clk 0:01:54]} 16. Qc2 {[%clk 0:00:38]}  O-O {[%clk 0:01:47]} 17. Nd2 {[%clk 0:00:35]}  h4 {[%clk 0:01:33]} 18. f3 {[%clk 0:00:33]}  Bh3 {[%clk 0:01:28]} 19. Nc4 {[%clk 0:00:33]}  Bxg2 {[%clk 0:01:25]} 20. Kxg2 {[%clk 0:00:33]}  h3+ {[%clk 0:01:24]} 21. Kg1 {[%clk 0:00:32]}  f5 {[%clk 0:01:22]} 22. Bc3 {[%clk 0:00:25]}  fxe4 {[%clk 0:01:05]} 23. fxe4 {[%clk 0:00:26]}  Rf3 {[%clk 0:01:05]} 24. Rf1 {[%clk 0:00:22]}  Raf8 {[%clk 0:00:59]} 25. Rxf3 {[%clk 0:00:18]}  Rxf3 {[%clk 0:01:00]} 26. Rf1 {[%clk 0:00:18]}  Qg4 {[%clk 0:00:55]} 27. Rf2 {[%clk 0:00:07]}  Rxf2 {[%clk 0:00:43]} 28. Kxf2 {[%clk 0:00:08]}  Qd7 {[%clk 0:00:31]} 29. Qe2 {[%clk 0:00:08]}  Nc8 {[%clk 0:00:30]} 30. Ba5 {[%clk 0:00:07]}  Bf6 {[%clk 0:00:28]} 31. Qf3 {[%clk 0:00:05]}  Bd8 {[%clk 0:00:27]} 32. Bd2 {[%clk 0:00:04]}  Kg7 {[%clk 0:00:25]} 33. g4 {[%clk 0:00:04]}  Bh4+ {[%clk 0:00:25]} 34. Kg1 {[%clk 0:00:05]}  Qb7 {[%clk 0:00:24]} 35. Qxh3 {[%clk 0:00:04]}  Qb1+ {[%clk 0:00:24]} 36. Kg2 {[%clk 0:00:05]}  g5 {[%clk 0:00:22]} 37. Qf3 {[%clk 0:00:04]}  Qxa2 {[%clk 0:00:22]} 38. Qe2 {[%clk 0:00:03]}  a6 {[%clk 0:00:14]} 39. h3 {[%clk 0:00:03]}  Kg6 {[%clk 0:00:13]} 40. Qf1 {[%clk 0:00:02]}  Kg7 {[%clk 0:00:13]} 41. Qf5 {[%clk 0:00:02]}  Ne7 {[%clk 0:00:13]} 42. Qe6 {[%clk 0:00:03]}  Ng6 {[%clk 0:00:12]} 43. Kf3 {[%clk 0:00:03]}  Qb1 {[%clk 0:00:12]} 44. Ke2 {[%clk 0:00:03]}  Qh1 {[%clk 0:00:12]} 45. Qd7+ {[%clk 0:00:01]}  Kh6 {[%clk 0:00:11]} 46. Nxd6 {[%clk 0:00:02]}  Qg2+ {[%clk 0:00:09]} 47. Kd1 {[%clk 0:00:02]}  Qf1+ {[%clk 0:00:08]} 48. Kc2 {[%clk 0:00:02]}  Nf4 {[%clk 0:00:09]} 49. Nf5+ {[%clk 0:00:02]}  Kg6 {[%clk 0:00:08]} 50. Qg7# {[%clk 0:00:03]} 1-0


[Site "https://www.chess.com"]

[Event "Titled Tuesday Blitz June 21 Late 2022"]
[White "Lashkin, Jegor"]
[Black "Pulpan, Jakub"]
[WhiteFideId "13907808"]
[BlackFideId "302759"]
[WhiteElo "2368"]
[BlackElo "2495"]
[Result "1-0"]
[Round "06"]
[TimeControl "180+1"]
[Date "2022.06.21"]
[WhiteClock "0:00:04"]
[BlackClock "0:00:11"]

1. d4 {[%clk 0:03:00]}  Nf6 {[%clk 0:02:54]} 2. c4 {[%clk 0:03:01]}  e6 {[%clk 0:02:28]} 3. Nc3 {[%clk 0:03:01]}  Bb4 {[%clk 0:02:29]} 4. e3 {[%clk 0:03:02]}  O-O {[%clk 0:02:29]} 5. Bd2 {[%clk 0:03:02]}  b6 {[%clk 0:02:29]} 6. Nf3 {[%clk 0:03:02]}  Bb7 {[%clk 0:02:29]} 7. Bd3 {[%clk 0:03:03]}  c5 {[%clk 0:02:27]} 8. a3 {[%clk 0:03:03]}  Bxc3 {[%clk 0:02:27]} 9. Bxc3 {[%clk 0:03:04]}  cxd4 {[%clk 0:02:27]} 10. Bxd4 {[%clk 0:02:55]}  Nc6 {[%clk 0:02:28]} 11. Bc3 {[%clk 0:02:55]}  d5 {[%clk 0:02:28]} 12. O-O {[%clk 0:02:53]}  dxc4 {[%clk 0:02:23]} 13. Bxc4 {[%clk 0:02:54]}  Qe7 {[%clk 0:02:22]} 14. Qe2 {[%clk 0:02:48]}  a6 {[%clk 0:02:21]} 15. Rac1 {[%clk 0:02:46]}  b5 {[%clk 0:02:20]} 16. Ba2 {[%clk 0:02:43]}  Rac8 {[%clk 0:02:20]} 17. Ng5 {[%clk 0:02:31]}  b4 {[%clk 0:02:10]} 18. axb4 {[%clk 0:01:56]}  Nxb4 {[%clk 0:02:08]} 19. Bb1 {[%clk 0:01:56]}  g6 {[%clk 0:01:56]} 20. e4 {[%clk 0:01:43]}  a5 {[%clk 0:01:48]} 21. Qe3 {[%clk 0:01:33]}  e5 {[%clk 0:01:36]} 22. h3 {[%clk 0:01:22]}  Nh5 {[%clk 0:01:28]} 23. Nf3 {[%clk 0:01:22]}  f6 {[%clk 0:01:28]} 24. g3 {[%clk 0:01:12]}  Ng7 {[%clk 0:01:26]} 25. Qb6 {[%clk 0:01:01]}  Nc6 {[%clk 0:01:13]} 26. Ba2+ {[%clk 0:00:54]}  Kh8 {[%clk 0:01:13]} 27. Bd5 {[%clk 0:00:54]}  Nd8 {[%clk 0:01:10]} 28. Bxa5 {[%clk 0:00:51]}  Rxc1 {[%clk 0:01:10]} 29. Rxc1 {[%clk 0:00:50]}  Bxd5 {[%clk 0:01:11]} 30. exd5 {[%clk 0:00:45]}  Qd7 {[%clk 0:01:11]} 31. Qb3 {[%clk 0:00:36]}  Qxh3 {[%clk 0:01:04]} 32. Rc7 {[%clk 0:00:30]}  Nh5 {[%clk 0:00:58]} 33. Qc3 {[%clk 0:00:21]}  Nf7 {[%clk 0:00:50]} 34. Bb4 {[%clk 0:00:21]}  Ra8 {[%clk 0:00:45]} 35. Rxf7 {[%clk 0:00:14]}  Qg4 {[%clk 0:00:40]} 36. Qc7 {[%clk 0:00:05]}  Ra1+ {[%clk 0:00:33]} 37. Kh2 {[%clk 0:00:05]}  Rh1+ {[%clk 0:00:32]} 38. Kxh1 {[%clk 0:00:05]}  Nxg3+ {[%clk 0:00:33]} 39. Kg2 {[%clk 0:00:03]}  Nf5+ {[%clk 0:00:14]} 40. Kf1 {[%clk 0:00:03]}  Qh3+ {[%clk 0:00:12]} 41. Ke1 {[%clk 0:00:04]}  Qh1+ {[%clk 0:00:11]} 42. Kd2 {[%clk 0:00:04]} 1-0


[Site "https://www.chess.com"]